fUSD/lending_fUSD_20240301
["ID","MTS","AMOUNT","RATE_DAILY","PERIOD"]
[315907481,1709267439256,-430.25670487,0.00020998,2]
[315907482,1709267439266,-630.5426831,0.00020998,2]
[315907483,1709267439275,-235.4674744,0.00020998,2]
[315907484,1709267439284,-155.32688139,0.00020999,2]
[315907485,1709267439294,-14870.4723,0.00021,2]
[315907486,1709267439305,-12659.0828,0.00021,2]
[315907487,1709267439315,-2730.4399,0.00021,2]
[315907488,1709267439324,-29856.2058,0.00021,2]
[315907489,1709267439333,-2920.7469,0.00021,2]
[315907490,1709267439344,-689.75290438,0.00021,2]
[315907491,1709267439353,-1962.98256624,0.00021014,2]
[315907492,1709267439363,-322.38986169,0.00021014,2]
[315907493,1709267439372,-220.88070784,0.00021018,2]
[315907494,1709267439382,-173.74601249,0.00021028,2]
[315907495,1709267439391,-19085.8195641,0.00021048,2]
[315907496,1709267439401,-12532.64757814,0.00021048,3]
[315907497,1709267439410,-396.67969995,0.00021099,5]
[315907498,1709267439420,-606.88,0.00021099,2]
[315907499,1709267439429,-606.88,0.00021099,2]
[315907500,1709267439438,-606.88,0.00021099,2]
[315907501,1709267439447,-606.88,0.00021099,2]
[315907502,1709267439457,-606.88,0.00021099,2]
[315907503,1709267439466,-606.88,0.00021099,2]
[315907504,1709267439475,-606.88,0.00021099,2]
[315907505,1709267439485,-606.88,0.00021099,2]
[315907506,1709267439494,-606.88,0.00021099,2]
[315907507,1709267439503,-606.88,0.00021099,2]
[315907508,1709267439514,-606.88,0.00021099,2]
[315907509,1709267439523,-606.88,0.00021099,2]
[315907510,1709267439532,-606.88,0.00021099,2]
[315907511,1709267439541,-606.88,0.00021099,2]
[315907512,1709267439551,-606.88,0.00021099,2]
[315907513,1709267439561,-606.88,0.00021099,2]
[315907514,1709267439570,-606.88,0.00021099,2]
[315907515,1709267439580,-606.88,0.00021099,2]
[315907516,1709267439589,-606.88,0.00021099,2]
[315907517,1709267439598,-606.88,0.00021099,2]
[315907518,1709267439608,-606.88,0.00021099,2]
[315907519,1709267439618,-606.88,0.00021099,2]
[315907520,1709267439627,-606.88,0.00021099,2]
[315907521,1709267439636,-607.1,0.00021099,2]
[315907522,1709267439645,-320.13179937,0.00021099,2]
[315907523,1709267439655,-500.0,0.00021099,2]
[315907524,1709267439664,-500.0,0.00021099,2]
[315907525,1709267439674,-500.0,0.00021099,2]
[315907526,1709267439683,-600.65733811,0.00021099,2]
[315907527,1709267439693,-500.0,0.00021099,2]
[315907528,1709267439702,-500.0,0.00021099,2]
[315907529,1709267439711,-500.0,0.00021099,2]
[315907530,1709267439721,-500.0,0.00021099,2]
[315907531,1709267439731,-220.10937828,0.00021099,2]
[315907532,1709267439740,-500.0,0.00021099,2]
[315907533,1709267439749,-500.75040564,0.00021099,2]
[315907534,1709267439759,-500.0,0.00021099,2]
[315907535,1709267439768,-500.0,0.00021099,2]
[315907536,1709267439778,-500.0,0.00021099,2]
[315907537,1709267439787,-500.0,0.00021099,2]
[315907538,1709267439796,-281.89827856,0.00021099,2]
[315907539,1709267439806,-445.05535942,0.00021099,2]
[315907540,1709267439816,-500.0,0.00021099,2]
[315907541,1709267439825,-500.0,0.00021099,2]
[315907542,1709267439834,-500.0,0.00021099,2]
[315907543,1709267439843,-500.0,0.00021099,2]
[315907544,1709267439853,-500.0,0.00021099,2]
[315907545,1709267439862,-500.0,0.00021099,2]
[315907546,1709267439871,-500.0,0.00021099,2]
[315907547,1709267439881,-500.0,0.00021099,2]
[315907548,1709267439890,-500.0,0.00021099,2]
[315907549,1709267439900,-500.0,0.00021099,2]
[315907550,1709267439910,-500.0,0.00021099,2]
[315907551,1709267439919,-500.0,0.00021099,2]
[315907552,1709267439929,-500.0,0.00021099,2]
[315907553,1709267439938,-600.21654062,0.00021099,2]
[315907554,1709267439948,-500.0,0.00021099,2]
[315907555,1709267439958,-500.0,0.00021099,2]
[315907556,1709267439967,-500.0,0.00021099,2]
[315907557,1709267439977,-500.0,0.00021099,2]
[315907558,1709267439987,-500.0,0.00021099,2]
[315907559,1709267439996,-234561.7282,0.000211,2]
[315907561,1709267440006,-25139.0525,0.000211,2]
[315907562,1709267440016,-100000.0,0.000211,2]
[315907563,1709267440025,-1000.0,0.000211,2]
[315907564,1709267440035,-584809.3042,0.000211,2]
[315907565,1709267440045,-1220.86526511,0.00021111,2]
[315907566,1709267440054,-2495.58696504,0.00021113,2]
[315907567,1709267440064,-153.65814854,0.00021166,2]
[315907568,1709267440073,-19085.81956404,0.0002118,2]
[315907569,1709267440083,-1962.98256621,0.00021186,2]
[315907570,1709267440092,-150.0,0.00021202,2]
[315907571,1709267440101,-200.0,0.00021208,2]
[315907572,1709267440111,-200.0,0.00021209,2]
[315907573,1709267440120,-200.0,0.00021209,2]
[315907574,1709267440129,-500.0,0.00021209,2]
[315907575,1709267440139,-200.0,0.00021209,2]
[315907576,1709267440148,-1000.0,0.00021212,2]
[315907577,1709267440159,-689.0311,0.00021273,2]
[315907578,1709267440168,-369.7404,0.00021273,2]
[315907579,1709267440177,-2341.0124,0.0002128,2]
[315907580,1709267440187,-155300.6408,0.0002128,2]
[315907581,1709267440196,-1000.0,0.0002128,2]
[315907582,1709267440206,-55555.0,0.0002128,2]
[315907583,1709267440215,-176.9764453,0.0002128,2]
[315907584,1709267440228,-2545.05,0.00021284,2]
[315907585,1709267440238,-250.48674301,0.000213,2]
[315907586,1709267440247,-2032.82041161,0.000213,4]
[315907587,1709267440258,-711.90397213,0.000213,2]
[315907588,1709267440267,-1008.0,0.000213,2]
[315907589,1709267440276,-855.29688447,0.000213,2]
[315907590,1709267440286,-219.60320739,0.000213,3]
[315907591,1709267440296,-2020.7235633,0.000213,2]
[315907592,1709267440306,-247.46616876,0.000213,2]
[315907593,1709267440316,-6118.63248248,0.000213,2]
[315907594,1709267440326,-9858.2264272,0.000213,2]
[315907595,1709267440335,-19085.81956404,0.00021312,2]
[315907596,1709267440344,-2495.58696504,0.00021326,2]
[315907597,1709267440353,-800.0,0.00021342,2]
[315907598,1709267440363,-220.88070784,0.00021355,2]
[315907599,1709267440372,-1962.98256621,0.00021357,2]
[315907600,1709267440382,-213.5254799,0.00021369,20]
[315907601,1709267440392,-32792.0,0.0002137,2]
[315907602,1709267440401,-157305.0,0.0002137,2]
[315907603,1709267440410,-1050.0,0.00021378,2]
[315907604,1709267440420,-155.35098602,0.00021378,2]
[315907605,1709267440429,-155.33611342,0.00021378,2]
[315907606,1709267440439,-627.68768489,0.00021378,2]
[315907607,1709267440448,-1217.61099103,0.00021378,2]
[315907608,1709267440458,-155.0,0.00021378,2]
[315907609,1709267440467,-459.07131453,0.00021378,2]
[315907610,1709267440477,-1000.0,0.00021379,2]
[315907611,1709267440486,-204.73380643,0.00021379,2]
[315907612,1709267440496,-4990.18398372,0.00021379,2]
[315907613,1709267440506,-133658.9,0.00021379,2]
[315907614,1709267440516,-1536022.25028374,0.0002138,2]
[315907621,1709267441320,-530785.8042223,0.0002138,2]
[315907622,1709267441370,-500.0,0.00021099,2]
[315907623,1709267441380,-500.0,0.00021099,2]
[315907624,1709267441390,-150.0,0.00021099,2]
[315907625,1709267441402,-350.0,0.00021099,2]
[315907626,1709267441411,-273.31486525,0.00021099,2]
[315907627,1709267441442,-226.68513475,0.00021099,2]
[315907628,1709267441451,-500.0,0.00021099,2]
[315907629,1709267441460,-129.97265952,0.00021099,2]
[315907630,1709267441472,-370.02734048,0.00021099,2]
[315907631,1709267441482,-750.63768353,0.0002138,2]
[315907633,1709267442382,-320.82838416,0.00021099,2]
[315907634,1709267442394,-179.17161584,0.00021099,2]
[315907635,1709267442404,-114.36338287,0.00021099,2]
[315907636,1709267442416,-385.63661713,0.00021099,2]
[315907637,1709267442425,-500.0,0.00021099,2]
[315907638,1709267442434,-500.0,0.00021099,2]
[315907639,1709267442443,-500.0,0.00021099,2]
[315907640,1709267442453,-500.0,0.00021099,2]
[315907641,1709267442463,-369.21767791,0.00021099,2]
[315907655,1709267446437,-130.78232209,0.00021099,2]
[315907656,1709267446448,-500.0,0.00021099,2]
[315907657,1709267446457,-422.58932708,0.00021099,2]
[315907658,1709267534505,8080.0,0.00027467,30]
[315907660,1709268220360,1228.05872624,0.000295,30]
[315907661,1709268275153,203.0,0.00019495,13]
[315907662,1709268566333,-150.00565977,9.368e-05,2]
[315907672,1709268631352,-3285.86088101,0.00012736,2]
[315907673,1709268631512,-891.17057701,0.00012736,2]
[315907674,1709268631523,-1057.72421204,0.00017851,2]
[315907675,1709268631533,-193.75,0.00017852,2]
[315907676,1709268631549,-161.93729079,0.00018144,2]
[315907677,1709268631560,-93.01112686,0.0001968,2]
[315907678,1709268631971,-3660.79887314,0.0001968,2]
[315907679,1709268631981,-288.0,0.00019812,2]
[315907680,1709268631991,-175.05,0.00019879,2]
[315907681,1709268632001,-150.0,0.00019986,2]
[315907682,1709268632011,-173.13,0.00019987,2]
[315907683,1709268632020,-286.02,0.00019987,2]
[315907684,1709268632030,-756.04396242,0.00019987,2]
[315907685,1709268632049,-1242.55603758,0.00019987,2]
[315907686,1709268632059,-211.07238593,0.0001999,2]
[315907687,1709268632069,-2019.63143724,0.0002,2]
[315907688,1709268632091,-8980.84548806,0.0002,2]
[315907689,1709268632104,-1212.24000026,0.0002,2]
[315907690,1709268632116,-701.89621518,0.0002,2]
[315907717,1709268634530,207.0,8.368e-05,2]
[315907721,1709268637657,-207.0,0.0001234,6]
[315907722,1709268637667,-207.0,0.00016312,10]
[315907723,1709268637679,-19807.86300032,0.0002,2]
[315907736,1709268640538,-273.82000003,0.0002,2]
[315907737,1709268640718,-1104.52685685,0.0002,2]
[315907738,1709268640783,-799.59759911,0.0002,2]
[315907756,1709268645557,-9602.70277155,0.0002,2]
[315907757,1709268645566,-1760.68,0.00020029,2]
[315907758,1709268645575,-193.75,0.00020116,2]
[315907759,1709268645586,-712.0,0.00020192,2]
[315907760,1709268645596,-2519.27,0.00020282,2]
[315907761,1709268645605,-207.0,0.00020283,15]
[315907762,1709268645614,-178.0,0.00020491,2]
[315907763,1709268645624,-275.42,0.00020622,2]
[315907764,1709268645633,-150.9,0.00020622,2]
[315907765,1709268645642,-150.0,0.00020622,2]
[315907766,1709268645651,-150.8,0.00020622,2]
[315907767,1709268645662,-301.93,0.00020622,2]
[315907768,1709268645673,-150.0,0.00020622,2]
[315907769,1709268645683,-150.0,0.00020622,2]
[315907770,1709268645693,-430.42,0.00020622,2]
[315907771,1709268645702,-350.9,0.00020622,2]
[315907772,1709268645712,-315.57,0.00020622,2]
[315907773,1709268645722,-345.06,0.00020622,2]
[315907774,1709268645731,-421.59,0.00020622,2]
[315907775,1709268645740,-413.71,0.00020622,2]
[315907776,1709268645749,-6263.5569,0.00020786,2]
[315907777,1709268645759,-448.3037854,0.00020796,2]
[315907778,1709268645768,-50064.5152,0.00020886,2]
[315907779,1709268645778,-315.8307,0.00020896,2]
[315907780,1709268645787,-2500.0,0.00020896,2]
[315907781,1709268645796,-1282.62559881,0.0002093,2]
[315907782,1709268645807,-449.78,0.00020986,3]
[315907783,1709268645816,-3106.08793727,0.00020994,2]
[315907784,1709268645827,-504.24185374,0.00020995,2]
[315907785,1709268645836,-526.48188274,0.00020995,2]
[315907786,1709268645846,-484.27621455,0.00020995,2]
[315907787,1709268645855,-54245.67172416,0.00020996,2]
[315907788,1709268664473,203.0,8.368e-05,2]
[315907790,1709268764950,700.0,0.0003,60]
[315907802,1709268997741,8500.0,0.00029,30]
[315907805,1709269118310,10000.0,0.000299,30]
[315907806,1709269124364,8000.0,0.00029,30]
[315907807,1709269148209,8000.0,0.00029,30]
[315907808,1709269188661,8500.0,0.0003,30]
[315907809,1709269257394,7241.0,0.0003,30]
[315907810,1709269283507,11797.80130712,0.000299,30]
[315907817,1709269831567,-628.66740198,0.00018079,2]
[315907819,1709269831577,-185.59,0.0001808,2]
[315907820,1709269831588,-176.81,0.00019624,10]
[315907821,1709269831597,-769.6,0.00019647,2]
[315907822,1709269831607,-2502.54,0.00019744,2]
[315907823,1709269831616,-173.13,0.00019766,2]
[315907824,1709269831626,-177.68223277,0.00019879,2]
[315907825,1709269831635,-194.2555,0.00019899,2]
[315907826,1709269831645,-1486.2232,0.000199,2]
[315907827,1709269831654,-230.4,0.00019921,2]
[315907828,1709269831664,-1035.0,0.00019971,2]
[315907829,1709269831673,-150.0,0.00019999,2]
[315907830,1709269831683,-1060.09007209,0.0002,3]
[315907831,1709269831695,-278.36627339,0.0002,3]
[315907832,1709269831724,-1411.54365452,0.0002,3]
[315907833,1709269831733,-495.48279711,0.0002,2]
[315907834,1709269831748,-309.97,0.0002,2]
[315907835,1709269831760,-1741.72720289,0.0002,2]
[315907836,1709269831770,-2493.13,0.0002,2]
[315907837,1709269831780,-2549.08,0.0002,2]
[315907838,1709269831789,-2577.18,0.0002,2]
[315907839,1709269831799,-413.8,0.00020078,2]
[315907840,1709269831808,-185.59,0.00020344,2]
[315907841,1709269831818,-355.69,0.0002038,2]
[315907842,1709269831827,-413.8,0.00020478,2]
[315907843,1709269831838,-1000.0,0.000205,2]
[315907844,1709269831847,-1000.0,0.000205,2]
[315907845,1709269831856,-1000.0,0.000205,2]
[315907846,1709269831866,-150.0,0.00020578,2]
[315907847,1709269831876,-304.67,0.00020578,2]
[315907848,1709269831885,-413.8,0.00020578,2]
[315907849,1709269831895,-802.31,0.00020578,2]
[315907850,1709269831904,-1000.0,0.000206,2]
[315907851,1709269831913,-610.10148633,0.000206,2]
[315907852,1709269831926,-331.98985293,0.000206,2]
[315907853,1709269831949,-57.90866074,0.000206,2]
[315907854,1709269831959,-891.07755458,0.000206,2]
[315907855,1709269831971,-244.92244542,0.000206,2]
[315907856,1709269831980,-1282.62559881,0.00020687,2]
[315907858,1709269831989,-413.8,0.00020745,2]
[315907860,1709269831998,-8731.28962473,0.00020796,2]
[315907862,1709269832010,-1123.48233042,0.00020796,2]
[315907865,1709269832033,-390.7143175,0.00020796,2]
[315907867,1709269832045,-538.88,0.00020796,2]
[315907871,1709269832066,-519.80629185,0.00020796,2]
[315907876,1709269832106,-530.38881895,0.00020796,2]
[315907892,1709269837552,-1143.97691514,0.00020796,2]
[315907893,1709269837564,-1856.40670141,0.00020796,2]
[315907894,1709269837574,-1000.0,0.000208,2]
[315907895,1709269837584,-1012.0,0.000208,2]
[315907896,1709269837597,-1521.53447015,0.00020886,2]
[315907897,1709269837608,-2135.40520827,0.00020886,2]
[315907898,1709269837690,-368.15469583,0.00020886,2]
[315907899,1709269837703,-758.36707319,0.00020886,2]
[315907900,1709269837715,-6581.19155834,0.00020886,2]
[315907901,1709269837724,-655.23502167,0.00020895,2]
[315907902,1709269837733,-5069.18011481,0.00020896,2]
[315907903,1709269837745,-2817.66646347,0.00020896,2]
[315907904,1709269837838,-740.20902172,0.00020896,2]
[315907905,1709269837847,-1051.83619202,0.00020896,2]
[315907906,1709269837895,-682.3059,0.00020896,2]
[315907907,1709269837923,-13.86450798,0.00020896,2]
[315907908,1709269837933,-294.6284,0.00020896,2]
[315907909,1709269837943,-896.27551543,0.00020896,2]
[315907910,1709269837957,-1369.29431586,0.00020896,2]
[315907911,1709269837969,-941.43031319,0.00020896,2]
[315907914,1709269840893,-1963.06295552,0.00020896,2]
[315907915,1709269840902,-1748.2053366,0.00020896,2]
[315907916,1709269840913,-1299.14346404,0.00020896,2]
[315907917,1709269840925,-1843.5714218,0.00020896,2]
[315908044,1709269849572,-1972.85607756,0.00020896,2]
[315908045,1709269849581,-1000.0,0.00020896,2]
[315908046,1709269849592,-7172.8955,0.00020896,2]
[315908047,1709269849602,-1000.0,0.000209,2]
[315908048,1709269849611,-896.60757074,0.000209,2]
[315908049,1709269849620,-1000.0,0.00020987,2]
[315908050,1709269849630,-204.89,0.0002099,2]
[315908051,1709269849639,-204.89,0.0002099,2]
[315908052,1709269849649,-194.05695367,0.00020994,2]
[315908053,1709269849658,-483.03829518,0.00020994,2]
[315908054,1709269849668,-232.33325942,0.00020994,2]
[315908055,1709269849677,-221.08135963,0.00020994,2]
[315908056,1709269849687,-780.89211371,0.00020995,2]
[315908057,1709269849696,-409.94438271,0.00020995,2]
[315908058,1709269849705,-214.29005097,0.00020995,2]
[315908059,1709269849715,-145754.32827584,0.00020996,2]
[315908060,1709269849724,-200000.0,0.00021,2]
[315908061,1709269849734,-1000.0,0.00021,2]
[315908062,1709269849743,-824.36,0.00021096,2]
[315908063,1709269849752,-1000.0,0.000211,2]
[315908064,1709269849761,-300.0,0.0002112,2]
[315908065,1709269849770,-150.0,0.00021151,2]
[315908066,1709269849779,-150.0,0.00021151,2]
[315908067,1709269849788,-150.0,0.00021151,2]
[315908068,1709269849797,-396.15,0.00021151,2]
[315908069,1709269849806,-150.0,0.00021151,2]
[315908070,1709269849815,-153.65814854,0.00021166,2]
[315908071,1709269849825,-200.0,0.00021208,2]
[315908072,1709269849834,-200.0,0.00021208,2]
[315908073,1709269849846,-200.0,0.00021209,2]
[315908074,1709269849855,-202.757461,0.00021209,2]
[315908075,1709269849865,-200.0,0.00021209,2]
[315908076,1709269849874,-200.0,0.00021209,2]
[315908077,1709269849883,-200.0,0.00021209,2]
[315908078,1709269849893,-500.0,0.00021209,2]
[315908079,1709269849902,-200.0,0.00021209,2]
[315908080,1709269849910,-207.0,0.00021255,2]
[315908081,1709269849919,-162.81629782,0.0002128,2]
[315908082,1709269849928,-214.92657446,0.0002128,2]
[315908083,1709269849937,-188.1174827,0.0002128,2]
[315908084,1709269849947,-14634.07265037,0.0002128,2]
[315908085,1709269849957,-828.48750509,0.0002128,2]
[315908086,1709269849966,-4079.08832166,0.0002128,2]
[315908087,1709269849975,-904.9891975,0.0002128,2]
[315908088,1709269849983,-164.97744584,0.0002128,2]
[315908089,1709269849993,-913.70767822,0.0002128,2]
[315908090,1709269850002,-8464.12641856,0.0002128,2]
[315908091,1709269850011,-1566.15185286,0.0002128,2]
[315908092,1709269850020,-1626.25632932,0.00021295,4]
[315908093,1709269850031,-2503.14,0.00021297,2]
[315908094,1709269850042,-1000.0,0.000213,4]
[315908095,1709269850053,-1000.0,0.000213,2]
[315908096,1709269850063,-204.89,0.00021358,2]
[315908097,1709269850073,-136210.90818964,0.00021366,2]
[315908098,1709269850083,-1220.86526512,0.00021366,2]
[315908099,1709269850093,-1282.62559881,0.00021366,2]
[315908100,1709269850103,-23875.5628938,0.00021368,2]
[315908101,1709269850112,-204.89,0.0002137,2]
[315908102,1709269850121,-204.89,0.0002137,2]
[315908103,1709269850131,-204.89,0.0002137,2]
[315908104,1709269850140,-155.0,0.00021376,2]
[315908105,1709269850150,-1053.07046078,0.00021378,2]
[315908106,1709269850160,-155.0,0.00021378,2]
[315908107,1709269850170,-120177.32231291,0.00021378,2]
[315908108,1709269850179,-204.73380643,0.00021379,2]
[315908109,1709269850190,-4990.18398372,0.00021379,2]
[315908110,1709269850200,-1177564.63283864,0.0002138,4]
[315908115,1709271031774,-167.03,0.00018594,2]
[315908116,1709271031784,-155.24579385,0.00018771,2]
[315908117,1709271031838,-844.75420615,0.00018771,2]
[315908118,1709271031848,-322.0,0.00019928,2]
[315908119,1709271031858,-464.00049369,0.0002,3]
[315908120,1709271031869,-477.77726593,0.0002,3]
[315908121,1709271031881,-338.017,0.0002,3]
[315908122,1709271034552,-913.61495301,0.0002,3]
[315908123,1709271034564,-334.50747262,0.0002,3]
[315908124,1709271034614,-222.08281475,0.0002,3]
[315908125,1709271034623,-428.87750654,0.00020337,2]
[315908126,1709271034635,-186.80249346,0.00020337,2]
[315908127,1709271034645,-500.0,0.0002038,2]
[315908128,1709271034655,-59.42599148,0.0002038,2]
[315908129,1709271034666,-460.23400852,0.0002038,2]
[315908130,1709271034677,-1668.36,0.00020384,2]
[315908131,1709271034687,-159.99,0.00020524,2]
[315908132,1709271034697,-384.32,0.00020537,2]
[315908133,1709271034706,-150.0,0.00020594,2]
[315908134,1709271034716,-167.03,0.00020858,2]
[315908136,1709271034726,-150.0,0.00020885,2]
[315908137,1709271034735,-2577.11,0.00020886,2]
[315908139,1709271034745,-2542.67,0.00020886,2]
[315908141,1709271034755,-1000.0,0.00020987,2]
[315908144,1709271034764,-153.65814855,0.00021166,2]
[315908146,1709271034774,-200.0,0.00021209,2]
[315908147,1709271034783,-500.0,0.00021209,2]
[315908148,1709271034792,-370.76479635,0.00021267,2]
[315908149,1709271034802,-370.76479633,0.00021273,2]
[315908150,1709271034811,-370.76479633,0.00021278,2]
[315908151,1709271034821,-162.81629779,0.0002128,2]
[315908152,1709271034831,-1963.11395229,0.0002128,2]
[315908153,1709271034841,-13776.30581821,0.0002128,2]
[315908154,1709271034850,-166.991162,0.0002129,2]
[315908155,1709271034860,-2719.39221444,0.0002129,2]
[315908156,1709271034870,-29969.0,0.000213,2]
[315908157,1709271034879,-976.0,0.000213,4]
[315908158,1709271034889,-1000.0,0.000213,2]
[315908159,1709271034898,-13776.30581802,0.00021307,2]
[315908160,1709271034908,-662.79000408,0.0002132,2]
[315908161,1709271034918,-13776.30581802,0.00021335,2]
[315908162,1709271034928,-13776.30581802,0.00021362,2]
[315908163,1709271034938,-13414.56659609,0.00021367,2]
[315908164,1709271034948,-163.92,0.00021368,2]
[315908165,1709271034957,-163.92,0.00021368,2]
[315908166,1709271034967,-163.92,0.00021368,2]
[315908167,1709271034976,-163.92,0.00021368,2]
[315908168,1709271034986,-163.92,0.0002137,2]
[315908169,1709271034996,-8585.2887041,0.00021375,2]
[315908170,1709271035006,-155.0,0.00021378,2]
[315908171,1709271035016,-40080.9496209,0.00021378,4]
[315908172,1709271035028,-4426.20573264,0.00021378,4]
[315908179,1709271037722,-357.78993092,0.00021377,2]
[315908181,1709271037731,-500.0,0.00021377,2]
[315908183,1709271037741,-500.0,0.00021377,2]
[315908185,1709271037751,-500.0,0.00021377,2]
[315908186,1709271037761,-400.02406007,0.00021377,2]
[315908187,1709271037771,-647.85943348,0.00021377,2]
[315908188,1709271037781,-500.0,0.00021377,2]
[315908189,1709271037790,-9311.21610316,0.00021378,4]
[315908190,1709271037810,-26094.07403144,0.00021378,4]
[315908191,1709271037905,-1691.8,0.00021378,4]
[315908192,1709271037917,-284.09487575,0.00021378,4]
[315908193,1709271037960,-807.85901915,0.00021378,4]
[315908194,1709271038073,-1557.28526674,0.00021378,4]
[315908197,1709271040258,-837.27203715,0.00021378,4]
[315908199,1709271043080,-153.65814855,0.00021166,2]
[315908200,1709271043090,-197.95651741,0.00021377,2]
[315908201,1709271043099,-1226.47357404,0.00021378,4]
[315908215,1709271045853,-355.07335019,0.00021378,4]
[315908216,1709271045866,-2436.38830008,0.00021378,4]
[315908221,1709271475664,5000.0,0.00022,30]
[315908224,1709272071209,10000.0,0.000295,30]
[315908235,1709272231990,-155.0,0.00018315,2]
[315908236,1709272232000,-1914.59459756,0.00018315,2]
[315908237,1709272232010,-1131.74024239,0.00018316,2]
[315908238,1709272232019,-1045.85357962,0.00018319,2]
[315908239,1709272232028,-201.0,0.0001856,2]
[315908240,1709272232038,-1112.24,0.00019948,2]
[315908241,1709272232048,-200.0,0.00020067,2]
[315908242,1709272232057,-174.53,0.00020098,2]
[315908243,1709272232067,-1000.0,0.00020103,2]
[315908244,1709272232077,-250.0,0.00020125,2]
[315908245,1709272232087,-150.0,0.00020137,2]
[315908246,1709272232098,-150.0,0.00020192,2]
[315908247,1709272232108,-150.0,0.00020377,2]
[315908248,1709272232118,-150.0,0.00020377,2]
[315908249,1709272232128,-300.0,0.00020377,2]
[315908250,1709272232139,-251.18221895,0.00020378,2]
[315908251,1709272232149,-150.0,0.00020378,2]
[315908252,1709272232159,-300.0,0.00020378,2]
[315908253,1709272232172,-150.0,0.00020378,2]
[315908254,1709272232182,-261.66104548,0.00020475,2]
[315908255,1709272232203,-2295.22895452,0.00020475,2]
[315908256,1709272232213,-173.13,0.0002048,2]
[315908257,1709272232222,-129.17226298,0.00020622,2]
[315908258,1709272232234,-45.35773702,0.00020622,2]
[315908259,1709272232243,-155.0,0.00020984,2]
[315908260,1709272232253,-297.12740298,0.00020986,2]
[315908264,1709272232484,-4392.14429574,0.00020986,2]
[315908274,1709272232673,-659.78141525,0.00020986,2]
[315908275,1709272233157,-180540.50000003,0.00020986,2]
[315908284,1709272238635,-150.32,0.0001809,2]
[315908285,1709272238644,-202.0,0.0001856,2]
[315908286,1709272238654,-150.32,0.00020354,2]
[315908287,1709272238663,-14110.446886,0.00020986,2]
[315908288,1709272238672,-427.2395385,0.00021,2]
[315908289,1709272238684,-5532.72,0.00021096,2]
[315908290,1709272238695,-153.65814855,0.00021165,2]
[315908291,1709272238704,-200.0,0.00021209,2]
[315908292,1709272238713,-500.0,0.00021209,2]
[315908293,1709272238722,-2293.38503098,0.00021276,2]
[315908294,1709272238732,-162.81629779,0.00021278,2]
[315908295,1709272238741,-214.92657446,0.00021278,2]
[315908296,1709272238751,-173.46690014,0.00021278,2]
[315908297,1709272238760,-530.23200328,0.00021278,2]
[315908298,1709272238770,-916.77881351,0.00021278,2]
[315908299,1709272238781,-166.991162,0.00021278,2]
[315908300,1709272238790,-1220.25256793,0.00021278,2]
[315908301,1709272238799,-1377.85091244,0.00021278,4]
[315908302,1709272238808,-164.97744583,0.00021278,2]
[315908303,1709272238817,-603.32613166,0.00021278,2]
[315908304,1709272238826,-609.13845214,0.00021278,2]
[315908305,1709272238836,-8207.2902336,0.00021278,2]
[315908306,1709272238845,-14998.05529976,0.00021278,2]
[315908307,1709272238855,-1812.92814296,0.00021278,2]
[315908308,1709272238863,-220420.89308832,0.0002128,2]
[315908309,1709272238873,-55555.0,0.0002128,2]
[315908310,1709272238882,-1000.0,0.000213,2]
[315908311,1709272238892,-1134.34442771,0.00021314,2]
[315908312,1709272238901,-5732.87271226,0.00021321,2]
[315908313,1709272238911,-153.4514762,0.00021368,2]
[315908314,1709272238920,-153.4514762,0.00021368,2]
[315908315,1709272238933,-153.4514762,0.00021368,2]
[315908316,1709272238943,-5484.0,0.0002137,2]
[315908317,1709272238953,-780.7630517,0.00021373,2]